bitfinex/quotes_SOLUSD_20251117
["timestamp","ask_amount","ask_price","bid_price","bid_amount"]
[1763345608082,4.6271904,139.25,139.18,15.11601809]
[1763345608266,5.3071904,139.25,139.18,14.41601809]
[1763345608591,4.6271904,139.26,139.19,5.3271904]
[1763345608750,8.07269602,139.26,139.19,8.77269602]
[1763345609086,8.75269602,139.26,139.19,8.77269602]
[1763345609459,125.8512,139.28,139.21,9.78882769]
[1763345609460,8.07269602,139.27,139.21,9.78882769]
[1763345609661,8.07269602,139.27,139.21,17.86152371]
[1763345609972,111.95269602,139.28,139.22,8.77269602]
[1763345610369,103.88,139.28,139.22,8.07269602]
[1763345610575,8.07269602,139.3,139.23,8.73269602]
[1763345610996,8.07269602,139.3,139.24,0.66]
[1763345611164,8.75269602,139.3,139.24,0.66]
[1763345611765,0.68,139.3,139.24,0.66]
[1763345611971,0.68,139.3,139.24,8.73269602]
[1763345612289,8.07269602,139.31,139.25,8.07269602]
[1763345612498,8.75269602,139.32,139.25,8.73269602]
[1763345612698,8.07269602,139.33,139.27,8.07269602]
[1763345613194,8.07269602,139.33,139.27,8.73269602]
[1763345613396,8.07269602,139.34,139.28,8.07269602]
[1763345613696,0.68,139.32,139.26,17.86152371]
[1763345613900,0.68,139.32,139.27,0.66]
[1763345614082,2.0,139.39,139.27,0.66]
[1763345614083,8.75269602,139.34,139.27,8.73269602]
[1763345615606,0.68,139.34,139.26,17.86152371]
[1763345615903,0.68,139.34,139.28,0.66]
[1763345616205,8.75269602,139.34,139.28,0.66]
[1763345617102,8.07269602,139.33,139.28,0.66]
[1763345617263,8.75269602,139.33,139.28,0.66]
[1763345617467,0.68,139.32,139.27,8.07269602]
[1763345617668,8.75269602,139.33,139.27,8.73269602]
[1763345618404,8.75269602,139.33,139.27,8.07269602]
[1763345618704,8.75269602,139.33,139.27,8.73269602]
[1763345618902,0.68,139.33,139.27,8.07269602]
[1763345619111,8.75269602,139.36,139.29,8.07269602]
[1763345619288,22.6512,139.38,139.29,9.78882769]
[1763345619491,8.75269602,139.37,139.3,8.73269602]
[1763345619885,8.75269602,139.37,139.31,0.66]
[1763345620697,8.07269602,139.37,139.31,0.66]
[1763345621008,8.75269602,139.37,139.31,0.66]
[1763345621694,22.6512,139.38,139.26,0.66]
[1763345621695,8.75269602,139.36,139.26,0.66]
[1763345621894,8.07269602,139.32,139.26,10.44882769]
[1763345622096,8.07269602,139.32,139.26,0.66]
[1763345622286,0.68,139.35,139.27,18.52152371]
[1763345622481,30.72389602,139.34,139.28,8.07269602]
[1763345622700,30.72389602,139.34,139.29,0.66]
[1763345622880,8.07269602,139.34,139.29,0.66]
[1763345623214,8.07269602,139.35,139.29,0.66]
[1763345623583,8.07269602,139.35,139.29,8.73269602]
[1763345623783,8.75269602,139.35,139.29,8.73269602]
[1763345623988,8.75269602,139.35,139.29,0.66]
[1763345625122,111.27269602,139.37,139.3,17.86152371]
[1763345625631,6.70505163,139.45,139.36,8.07269602]
[1763345625814,6.70505163,139.45,139.35,9.78882769]
[1763345625815,0.88,139.47,139.41,8.07269602]
[1763345625985,0.2,139.47,139.43,8.07269602]
[1763345626386,8.95269602,139.47,139.41,0.66]
[1763345626695,8.07269602,139.46,139.39,8.07269602]
[1763345626891,8.75269602,139.46,139.39,17.86152371]
[1763345627093,8.75269602,139.46,139.39,18.52152371]
[1763345627288,8.75269602,139.46,139.36,7.29619257]
[1763345627289,8.07269602,139.43,139.36,7.29619257]
[1763345627514,8.07269602,139.43,139.37,10.44882769]
[1763345627891,8.75269602,139.44,139.37,17.86152371]
[1763345628089,8.07269602,139.45,139.39,8.07269602]
[1763345628290,23.3312,139.46,139.4,8.73269602]
[1763345628514,0.68,139.46,139.4,8.73269602]
[1763345629094,8.07269602,139.46,139.41,0.66]
[1763345629293,8.27269602,139.47,139.41,0.66]
[1763345629499,0.2,139.47,139.42,8.07269602]
[1763345629693,0.2,139.47,139.43,0.66]
[1763345630016,8.27269602,139.47,139.42,9.78882769]
[1763345630229,8.27269602,139.47,139.41,0.66]
[1763345630420,8.07269602,139.44,139.39,0.66]
[1763345630716,0.68,139.46,139.38,17.86152371]
[1763345631024,8.07269602,139.44,139.38,18.52152371]
[1763345631224,0.68,139.45,139.36,8.07269602]
[1763345631402,8.07269602,139.39,139.34,0.66]
[1763345631607,8.07269602,139.4,139.34,8.73269602]
[1763345631803,8.07269602,139.4,139.34,0.66]
[1763345632109,8.07269602,139.4,139.34,8.73269602]
[1763345632491,8.75269602,139.39,139.33,9.78882769]
[1763345632690,8.07269602,139.34,139.28,0.66]
[1763345632895,8.07269602,139.33,139.28,0.66]
[1763345633121,8.07269602,139.35,139.29,8.07269602]
[1763345633922,8.07269602,139.35,139.3,0.66]
[1763345634417,8.07269602,139.36,139.3,8.73269602]
[1763345634604,8.07269602,139.36,139.31,9.78882769]
[1763345634795,8.07269602,139.38,139.32,8.07269602]
[1763345634995,8.07269602,139.38,139.32,8.73269602]
[1763345635630,8.07269602,139.37,139.32,0.66]
[1763345635795,8.07269602,139.37,139.28,0.66]
[1763345635796,8.07269602,139.34,139.28,0.66]
[1763345635996,8.07269602,139.32,139.27,9.78882769]
[1763345636610,8.07269602,139.33,139.28,0.66]
[1763345638319,8.75269602,139.34,139.28,0.66]
[1763345639319,8.07269602,139.33,139.28,0.66]
[1763345640220,8.07269602,139.31,139.25,9.78882769]
[1763345640530,8.07269602,139.3,139.24,0.66]
[1763345642022,8.07269602,139.3,139.24,8.73269602]
[1763345642221,0.71,139.36,139.27,8.07269602]
[1763345642407,8.07269602,139.33,139.28,0.7]
[1763345642811,8.78269602,139.33,139.28,0.7]
[1763345643932,8.07269602,139.35,139.28,8.77269602]
[1763345644227,8.07269602,139.34,139.28,0.7]
[1763345644627,8.07269602,139.33,139.28,0.7]
[1763345645013,8.07269602,139.34,139.28,0.7]
[1763345645734,8.78269602,139.35,139.28,8.77269602]
[1763345645930,8.07269602,139.34,139.28,8.77269602]
[1763345646133,8.07269602,139.33,139.28,0.7]
[1763345646317,0.71,139.34,139.28,0.7]
[1763345646519,8.78269602,139.34,139.28,8.77269602]
[1763345647133,22.6512,139.37,139.28,0.7]
[1763345647134,0.71,139.37,139.28,0.7]
[1763345647337,8.07269602,139.35,139.29,8.77269602]
[1763345647640,8.07269602,139.35,139.29,0.7]
[1763345648144,8.78269602,139.35,139.29,0.7]
[1763345648315,8.07269602,139.34,139.29,0.7]
[1763345648728,8.78269602,139.34,139.29,0.7]
[1763345648937,8.07269602,139.32,139.25,8.77269602]
[1763345649238,8.07269602,139.31,139.25,0.7]
[1763345649908,8.07269602,139.33,139.26,8.07269602]
[1763345650109,23.3612,139.34,139.27,8.07269602]
[1763345650309,105.2,139.39,139.28,8.07269602]
[1763345650310,8.07269602,139.35,139.28,8.07269602]
[1763345650553,8.07269602,139.35,139.26,9.78882769]
[1763345650554,6.02505163,139.46,139.35,9.78882769]
[1763345650849,0.2,139.47,139.46,9.78882769]
[1763345651050,0.2,139.48,139.46,15.81387932]
[1763345651213,0.2,139.48,139.47,45.13641732]
[1763345651414,0.2,139.51,139.48,9.78882769]
[1763345651634,0.2,139.51,139.48,17.86152371]
[1763345652936,0.2,139.51,139.48,9.78882769]
[1763345653126,0.2,139.51,139.48,17.86152371]
[1763345653323,0.2,139.51,139.48,9.78882769]
[1763345653535,0.2,139.51,139.48,17.86152371]
[1763345656656,0.2,139.51,139.48,9.78882769]
[1763345656858,0.2,139.51,139.48,17.86152371]
[1763345657164,0.92,139.49,139.47,8.07269602]
[1763345657463,0.2,139.49,139.48,8.07269602]
[1763345658464,0.2,139.49,139.46,9.78882769]
[1763345658637,0.2,139.49,139.47,8.07269602]
[1763345658839,0.2,139.49,139.45,9.78882769]
[1763345659158,0.2,139.49,139.48,17.86152371]
[1763345659490,0.2,139.49,139.48,9.78882769]
[1763345659968,0.2,139.49,139.48,22.61180862]
[1763345660352,0.2,139.49,139.48,14.5391126]
[1763345660552,0.2,139.49,139.48,22.61180862]
[1763345662240,0.2,139.49,139.48,4.75028491]
[1763345664376,0.2,139.49,139.45,9.78882769]
[1763345664377,0.92,139.49,139.45,9.78882769]
[1763345664558,0.92,139.49,139.46,4.74404396]
[1763345664754,0.72,139.48,139.47,4.74404396]
[1763345664957,0.2,139.49,139.45,8.07269602]
[1763345665160,0.92,139.49,139.46,12.81746513]
[1763345665376,0.92,139.49,139.46,8.07269602]
[1763345665584,0.92,139.49,139.47,4.74305803]
[1763345665872,0.92,139.49,139.45,8.07269602]
[1763345666067,0.92,139.49,139.46,4.74266774]
[1763345666271,0.92,139.49,139.47,4.74266774]
[1763345666783,0.2,139.49,139.48,8.07269602]
[1763345667086,0.2,139.49,139.48,4.74266774]
[1763345667284,0.2,139.49,139.48,12.81536376]
[1763345668377,0.2,139.49,139.48,4.74266774]
[1763345668578,0.92,139.49,139.48,4.74266774]
[1763345668759,0.92,139.49,139.46,4.74266774]
[1763345668958,0.92,139.49,139.47,4.74266774]
[1763345669154,0.2,139.49,139.48,4.74266774]
[1763345669377,0.2,139.49,139.44,8.07269602]
[1763345669576,0.2,139.49,139.45,4.74157668]
[1763345669768,0.92,139.49,139.46,4.74157668]
[1763345669970,0.92,139.49,139.45,8.07269602]
[1763345670164,0.92,139.49,139.46,4.74325119]
[1763345670482,0.66,139.48,139.46,4.74325119]
[1763345671084,0.2,139.49,139.46,4.74325119]
[1763345671377,0.86,139.49,139.47,4.74325119]
[1763345671580,0.86,139.49,139.45,4.61924035]
[1763345671801,0.2,139.49,139.47,4.61924035]
[1763345672270,0.2,139.49,139.48,9.36016286]
[1763345672669,0.2,139.49,139.48,4.74092251]
[1763345673259,0.2,139.49,139.48,14.5297502]
[1763345673457,0.2,139.49,139.48,19.14899055]
[1763345673892,0.2,139.49,139.48,4.74092251]
[1763345674378,0.2,139.49,139.47,4.74092251]
[1763345674570,0.2,139.49,139.48,4.74092251]
[1763345674772,0.2,139.49,139.47,4.74092251]
[1763345676091,0.2,139.49,139.48,14.5297502]
[1763345676468,0.2,139.49,139.48,19.14899055]
[1763345677692,0.2,139.51,139.48,25.11170537]
[1763345677865,0.2,139.51,139.5,4.61924035]
[1763345678070,0.2,139.51,139.5,9.36016286]
[1763345679181,0.2,139.51,139.5,14.5297502]
[1763345679881,0.2,139.51,139.5,19.14899055]
[1763345680262,0.2,139.51,139.5,14.5297502]
[1763345680473,0.2,139.51,139.5,19.14899055]
[1763345681081,0.2,139.51,139.5,19.14025601]
[1763345681294,0.2,139.51,139.5,4.73218797]
[1763345681592,5.47924035,139.51,139.5,4.01218797]
[1763345681886,5.47924035,139.51,139.46,4.61924035]
[1763345681887,0.86,139.51,139.46,4.61924035]
[1763345682089,0.66,139.5,139.47,4.61924035]
[1763345682586,0.66,139.5,139.45,9.78882769]
[1763345682776,0.66,139.5,139.47,4.61924035]
[1763345683567,0.66,139.5,139.48,4.61924035]
[1763345683877,0.66,139.5,139.45,9.78882769]
[1763345684074,4.61924035,139.48,139.43,15.70406265]
[1763345684280,4.61924035,139.48,139.43,9.78882769]
[1763345684473,0.66,139.47,139.43,14.40806804]
[1763345684675,0.66,139.47,139.44,4.61924035]
[1763345686092,0.66,139.47,139.42,10.53447531]
[1763345686279,0.66,139.47,139.42,4.61924035]
[1763345687693,0.2,139.51,139.41,15.70406265]
[1763345687904,0.86,139.51,139.46,4.61924035]
[1763345688116,0.86,139.51,139.43,5.91523496]
[1763345688117,4.61924035,139.48,139.43,5.91523496]
[1763345688267,5.27924035,139.5,139.44,4.61924035]
[1763345688587,0.66,139.5,139.45,4.61924035]
[1763345688783,0.66,139.49,139.45,4.61924035]
[1763345690483,0.66,139.49,139.44,14.40806804]
[1763345691080,0.66,139.49,139.45,4.61924035]
[1763345691579,0.66,139.49,139.44,4.61924035]
[1763345692284,0.66,139.49,139.45,4.61924035]
[1763345692610,0.2,139.51,139.48,4.61924035]
[1763345692890,0.2,139.51,139.47,4.61924035]
[1763345693098,0.66,139.5,139.46,4.61924035]
[1763345693306,0.2,139.51,139.46,4.61924035]
[1763345693505,0.86,139.51,139.46,4.61924035]
[1763345693708,0.66,139.5,139.47,4.61924035]
[1763345694691,0.66,139.5,139.46,4.61924035]
[1763345694900,0.2,139.51,139.46,4.61924035]
[1763345695115,0.57794054,139.51,139.47,4.61924035]
[1763345695318,0.57794054,139.51,139.47,10.53447531]
[1763345695816,5.19718089,139.51,139.47,5.91523496]
[1763345696011,5.19718089,139.51,139.45,22.47635227]
[1763345696012,5.19718089,139.51,139.46,5.91523496]
[1763345696214,4.61924035,139.5,139.46,5.91523496]
[1763345696605,4.61924035,139.51,139.46,5.91523496]
[1763345697117,22.6512,139.55,139.46,10.53447531]
[1763345697118,0.66,139.5,139.46,10.53447531]
[1763345697323,0.66,139.5,139.46,4.61924035]
[1763345698720,0.66,139.5,139.45,20.323303]
[1763345698913,0.66,139.5,139.45,15.70406265]
[1763345699301,5.27924035,139.5,139.45,15.70406265]
[1763345699501,0.66,139.5,139.45,15.70406265]
[1763345699703,0.66,139.49,139.45,15.70406265]
[1763345700002,0.66,139.49,139.45,20.323303]
[1763345700521,4.61924035,139.47,139.43,5.91523496]
[1763345700821,103.2,139.52,139.46,4.61924035]
[1763345701022,0.2,139.56,139.48,4.61924035]
[1763345701220,0.67,139.51,139.48,4.61924035]
[1763345701419,0.67,139.51,139.46,15.70406265]
[1763345701624,22.6512,139.54,139.48,4.61924035]
[1763345701807,0.67,139.53,139.48,4.61924035]
[1763345702013,4.61924035,139.52,139.47,5.91523496]
[1763345702212,4.61924035,139.52,139.46,20.323303]
[1763345702543,0.67,139.51,139.47,4.61924035]
[1763345703017,0.67,139.51,139.46,20.323303]
[1763345703211,0.67,139.51,139.46,5.91523496]
[1763345703429,4.61924035,139.5,139.44,10.53447531]
[1763345703743,0.67,139.51,139.45,4.61924035]
[1763345703910,0.67,139.5,139.46,4.61924035]
[1763345704241,0.67,139.55,139.49,4.61924035]
[1763345704440,5.28924035,139.55,139.49,4.61924035]
[1763345704935,0.2,139.56,139.51,4.61924035]
[1763345704936,0.87,139.56,139.51,4.61924035]
[1763345705114,5.48924035,139.56,139.5,9.78882769]
[1763345705309,0.67,139.55,139.5,14.40806804]
[1763345705510,0.67,139.55,139.5,15.10806804]
[1763345705712,0.67,139.55,139.5,14.40806804]
[1763345705930,5.28924035,139.55,139.5,9.78882769]
[1763345706234,4.61924035,139.54,139.49,9.78882769]
[1763345706525,0.2,139.56,139.54,9.78882769]
[1763345706826,0.2,139.56,139.55,14.40806804]
[1763345707215,0.2,139.56,139.55,15.10806804]
[1763345707414,0.2,139.56,139.55,10.48882769]
[1763345707615,0.2,139.56,139.55,21.023303]
[1763345708214,0.2,139.56,139.55,15.10806804]
[1763345708435,0.2,139.56,139.55,14.40806804]
[1763345708818,0.87,139.56,139.52,5.91523496]
[1763345709134,0.2,139.56,139.55,9.78882769]
[1763345709534,0.2,139.56,139.55,15.10806804]
[1763345714137,0.2,139.56,139.55,9.78882769]
[1763345714312,0.2,139.56,139.55,15.10806804]
[1763345715526,0.2,139.56,139.55,10.48882769]
[1763345715721,0.2,139.56,139.55,15.10806804]
[1763345715920,0.2,139.56,139.55,14.40806804]
[1763345716125,0.87,139.56,139.51,9.78882769]
[1763345716325,0.2,139.56,139.55,4.61924035]
[1763345716741,0.2,139.56,139.55,15.12806804]
[1763345716942,0.2,139.56,139.55,14.40806804]
[1763345717246,0.89,139.56,139.55,9.78882769]
[1763345717447,0.89,139.56,139.53,9.78882769]
[1763345717817,0.69,139.55,139.53,9.78882769]
[1763345718014,0.2,139.56,139.53,9.78882769]
[1763345718231,0.2,139.56,139.55,14.40806804]
[1763345719443,0.2,139.56,139.55,15.12806804]
[1763345722945,0.2,139.56,139.55,10.50882769]
[1763345723132,0.2,139.56,139.55,15.12806804]
[1763345725250,0.2,139.56,139.55,37.77926804]
[1763345726954,0.2,139.56,139.55,33.16002769]
[1763345727141,0.2,139.56,139.55,37.77926804]
[1763345727651,0.89,139.56,139.55,9.78882769]
[1763345727850,0.89,139.56,139.55,14.40806804]
[1763345728151,0.2,139.56,139.55,14.40806804]
[1763345729844,0.2,139.56,139.55,15.12806804]
[1763345730445,0.2,139.56,139.55,14.40806804]
[1763345731828,0.2,139.56,139.55,19.22730839]
[1763345732944,0.2,139.56,139.55,22.63794445]
[1763345733256,0.89,139.56,139.55,17.8187041]
[1763345734062,0.2,139.56,139.55,17.8187041]
[1763345734837,0.2,139.56,139.55,12.81544541]
[1763345736547,0.2,139.56,139.55,13.53544541]
[1763345736754,0.2,139.56,139.55,12.81544541]
[1763345738163,0.89,139.56,139.55,12.81544541]
[1763345738339,0.2,139.56,139.55,12.81544541]
[1763345738772,0.2,139.56,139.55,17.81891893]
[1763345739270,0.2,139.56,139.55,9.78882769]
[1763345739650,0.2,139.56,139.55,17.81891893]
[1763345739962,0.89,139.56,139.52,9.78882769]
[1763345740448,0.69,139.55,139.52,9.78882769]
[1763345740955,0.69,139.55,139.54,9.78882769]
[1763345741540,0.69,139.55,139.52,8.03009124]
[1763345743763,0.2,139.56,139.54,8.03009124]
[1763345744066,0.2,139.56,139.55,17.81891893]
[1763345745151,0.89,139.56,139.55,9.78882769]
[1763345745663,0.2,139.56,139.55,17.81891893]
[1763345746541,0.89,139.56,139.55,9.78882769]
[1763345747053,0.2,139.56,139.55,17.81891893]
[1763345747255,0.2,139.56,139.55,9.78882769]
[1763345747455,0.2,139.56,139.55,17.81891893]
[1763345749150,0.89,139.56,139.55,9.78882769]
[1763345750169,0.89,139.56,139.54,5.91523496]
[1763345750466,0.69,139.55,139.54,15.70406265]
[1763345750638,0.69,139.55,139.54,9.78882769]
[1763345750841,0.69,139.55,139.53,9.78882769]
[1763345751262,0.69,139.55,139.53,17.81891893]
[1763345751470,0.69,139.55,139.53,23.73415389]
[1763345752065,0.2,139.56,139.53,23.73415389]
[1763345752267,0.89,139.56,139.53,5.91523496]
[1763345752563,0.89,139.56,139.52,15.70406265]
[1763345752769,0.69,139.55,139.52,23.73415389]
[1763345753258,0.69,139.55,139.52,15.70406265]
[1763345753444,0.69,139.55,139.52,23.73415389]
[1763345754348,0.69,139.55,139.52,15.70406265]
[1763345754543,0.69,139.55,139.52,23.73415389]
[1763345755465,0.69,139.55,139.52,15.70406265]
[1763345756070,0.69,139.55,139.52,5.91523496]
[1763345756271,8.03009124,139.54,139.51,5.91523496]
[1763345756471,8.03009124,139.54,139.5,5.91523496]
[1763345756648,0.69,139.53,139.49,5.91523496]
[1763345756966,8.03009124,139.5,139.45,8.03009124]
[1763345757168,8.03009124,139.5,139.44,5.91523496]
[1763345757169,8.03009124,139.48,139.43,5.91523496]
[1763345757678,0.69,139.47,139.43,5.91523496]
[1763345758469,0.69,139.47,139.42,13.9453262]
[1763345759484,0.69,139.47,139.42,5.91523496]
[1763345759845,8.72009124,139.47,139.41,23.73415389]
[1763345760053,8.03009124,139.44,139.4,5.91523496]
[1763345760260,8.03009124,139.45,139.39,33.52298158]
[1763345760456,8.03009124,139.45,139.39,23.73415389]
[1763345760669,0.66,139.44,139.39,23.73415389]
[1763345760875,0.66,139.44,139.4,13.9453262]
[1763345761459,0.66,139.44,139.4,8.03009124]
[1763345762120,0.66,139.44,139.38,18.48891893]
[1763345762261,0.66,139.44,139.38,10.45882769]
[1763345762461,0.66,139.44,139.37,0.1]
[1763345762796,8.03009124,139.41,139.37,0.1]
[1763345763099,8.03009124,139.4,139.37,0.1]
[1763345763262,8.03009124,139.41,139.37,0.1]
[1763345763696,0.66,139.4,139.37,0.1]
[1763345764096,0.66,139.4,139.37,8.13009124]
[1763345764374,0.66,139.4,139.37,0.1]
[1763345766200,8.03009124,139.39,139.37,0.1]
[1763345766398,8.03009124,139.38,139.37,0.1]
[1763345766790,8.69009124,139.38,139.37,0.1]
[1763345767674,0.66,139.4,139.37,0.1]
[1763345769103,8.69009124,139.4,139.37,0.1]
[1763345769300,0.66,139.4,139.37,0.1]
[1763345769498,0.66,139.39,139.37,0.1]
[1763345773417,0.66,139.41,139.37,0.1]
[1763345773717,8.03009124,139.4,139.37,0.1]
[1763345774219,0.66,139.39,139.37,0.1]
[1763345775325,22.6512,139.44,139.37,0.1]
[1763345775326,0.66,139.4,139.37,0.1]
[1763345775501,0.66,139.43,139.37,10.55882769]
[1763345775705,8.03009124,139.46,139.39,8.03009124]
[1763345776003,8.03009124,139.45,139.39,8.03009124]
[1763345776315,0.66,139.44,139.39,8.03009124]
[1763345776818,0.66,139.44,139.37,0.1]
[1763345776819,8.03009124,139.4,139.37,0.1]
[1763345777006,0.66,139.39,139.37,0.1]
[1763345777703,8.69009124,139.39,139.37,0.1]
[1763345778018,0.66,139.39,139.37,0.1]
[1763345778195,0.66,139.38,139.37,0.1]
[1763345779696,8.69009124,139.38,139.37,0.1]
[1763345780303,0.66,139.38,139.37,0.1]
[1763345781833,8.69009124,139.38,139.37,0.1]
[1763345784520,22.6512,139.36,139.35,0.1]
[1763345784714,8.03009124,139.36,139.35,0.1]
[1763345785026,8.69009124,139.36,139.35,0.1]
[1763345789939,31.34129124,139.36,139.35,0.1]
[1763345794934,27.9412228,139.36,139.35,0.1]
[1763345800138,0.72,139.45,139.36,9.78882769]
[1763345800355,4.6300228,139.4,139.36,0.67]
[1763345800949,1.94308534,139.4,139.36,0.67]
[1763345801163,2.66308534,139.4,139.36,0.67]
[1763345801330,22.6512,139.41,139.36,0.67]
[1763345801530,1.94308534,139.4,139.36,0.67]
[1763345802331,1.94308534,139.43,139.37,1.94308534]
[1763345802525,2.66308534,139.44,139.38,0.67]
[1763345802730,2.66308534,139.44,139.37,1.94308534]
[1763345802731,1.94308534,139.42,139.35,0.1]
[1763345802953,1.94308534,139.41,139.36,0.67]
[1763345803140,2.66308534,139.42,139.36,0.67]
[1763345803337,2.66308534,139.42,139.36,2.61308534]
[1763345804960,0.72,139.42,139.36,2.61308534]
[1763345805152,2.66308534,139.44,139.37,2.61308534]
[1763345805454,1.94308534,139.43,139.37,2.61308534]
[1763345805641,2.66308534,139.44,139.38,0.67]
[1763345805964,0.72,139.44,139.39,1.94308534]
[1763345806172,1.94308534,139.45,139.39,2.61308534]
[1763345806349,0.72,139.43,139.39,0.67]
[1763345806758,1.94308534,139.44,139.39,0.67]
[1763345806956,0.72,139.43,139.39,0.67]
[1763345807647,7.77234136,139.51,139.39,0.67]
[1763345807648,0.72,139.46,139.4,1.94308534]
[1763345807866,2.66308534,139.46,139.4,1.94308534]
[1763345808051,2.66308534,139.46,139.4,2.61308534]
[1763345808361,2.66308534,139.46,139.41,0.67]
[1763345808558,0.72,139.46,139.41,0.67]
[1763345808957,1.94308534,139.47,139.41,2.61308534]
[1763345809176,0.72,139.46,139.41,2.61308534]
[1763345809552,0.72,139.46,139.42,0.67]
[1763345810050,2.66308534,139.46,139.42,0.67]
[1763345810770,2.66308534,139.45,139.4,0.67]
[1763345811169,2.66308534,139.45,139.41,0.67]
[1763345811468,1.94308534,139.45,139.41,0.67]
[1763345811846,1.94308534,139.42,139.36,1.94308534]
[1763345812061,1.94308534,139.42,139.35,6.02098694]
[1763345812062,1.94308534,139.41,139.37,0.67]
[1763345813579,1.94308534,139.42,139.37,0.67]
[1763345814093,2.66308534,139.42,139.37,0.67]
[1763345814860,5.34492421,139.42,139.37,0.67]
[1763345815950,4.62492421,139.42,139.37,0.67]
[1763345816154,5.34492421,139.42,139.37,0.67]
[1763345817769,0.72,139.41,139.37,0.67]
[1763345817988,5.34492421,139.41,139.37,0.67]
[1763345818171,0.72,139.41,139.37,0.67]
[1763345820378,4.62492421,139.42,139.37,0.67]
[1763345820584,0.69,139.43,139.37,0.67]
[1763345820801,9.78882769,139.54,139.4,4.62492421]
[1763345820974,0.2,139.56,139.44,4.62492421]
[1763345821170,4.62492421,139.48,139.4,0.7]
[1763345821391,4.62492421,139.43,139.4,0.7]
[1763345821584,4.62492421,139.43,139.38,10.48882769]
[1763345821980,0.69,139.45,139.39,0.7]
[1763345822187,4.62492421,139.47,139.41,4.62492421]
[1763345822694,5.31492421,139.48,139.42,0.7]
[1763345823683,4.62492421,139.48,139.42,0.7]
[1763345823882,0.69,139.47,139.42,0.7]
[1763345824872,0.69,139.47,139.37,22.6512]
[1763345824873,4.62492421,139.46,139.4,0.7]
[1763345825194,4.62492421,139.46,139.4,10.48882769]
[1763345825405,5.31492421,139.47,139.41,14.4137519]
[1763345825586,5.31492421,139.47,139.41,15.1137519]
[1763345826096,4.62492421,139.48,139.42,5.32492421]
[1763345826297,5.31492421,139.48,139.42,5.32492421]
[1763345826486,0.69,139.48,139.43,0.7]
[1763345826997,5.31492421,139.48,139.43,0.7]
[1763345827797,5.31492421,139.47,139.43,0.7]
[1763345828017,0.69,139.47,139.43,0.7]
[1763345828801,5.31492421,139.51,139.45,4.62492421]
[1763345828998,5.31492421,139.51,139.45,5.32492421]
[1763345829300,0.69,139.5,139.45,5.32492421]
[1763345829506,5.31492421,139.5,139.45,0.7]
[1763345829807,0.69,139.49,139.45,0.7]
[1763345830106,5.31492421,139.5,139.45,0.7]
[1763345830405,0.69,139.49,139.45,0.7]
[1763345831603,22.6512,139.51,139.45,0.7]
[1763345831604,22.6512,139.51,139.45,5.32492421]
[1763345831780,22.6512,139.51,139.46,0.7]
[1763345831980,27.96612421,139.51,139.46,0.7]
[1763345832214,0.69,139.5,139.46,0.7]
[1763345833108,5.31492421,139.5,139.46,0.7]
[1763345834290,0.69,139.5,139.46,0.7]
[1763345835112,22.6512,139.51,139.46,0.7]
[1763345835312,22.6512,139.51,139.47,4.62492421]
[1763345835612,0.69,139.53,139.46,0.7]
[1763345835792,0.69,139.53,139.47,4.62492421]
[1763345836194,5.31492421,139.53,139.48,0.68]
[1763345836798,1.93933774,139.53,139.48,0.68]
[1763345837003,0.2,139.56,139.48,0.68]
[1763345837191,1.93933774,139.54,139.48,2.61933774]
[1763345837708,1.93933774,139.54,139.49,0.68]
[1763345837910,2.65933774,139.54,139.49,0.68]
[1763345838394,2.13933774,139.56,139.49,2.61933774]
[1763345838591,2.85933774,139.56,139.49,2.61933774]
[1763345838911,0.72,139.55,139.5,0.68]
[1763345839203,2.65933774,139.55,139.5,0.68]